bitfinex-derivatives/quotes_SOLF0:USTF0_20250630
["timestamp","ask_amount","ask_price","bid_price","bid_amount"]
[1751266594906,3.10333028,150.65,150.59,48.6509]
[1751266595305,5.3097,150.63,150.59,48.6509]
[1751266596503,5.3097,150.63,150.6,5.3106]
[1751266596706,649.37176733,150.73,150.6,3.101728]
[1751266597003,649.37176733,150.73,150.6,9.25313025]
[1751266597004,3.101728,150.69,150.6,9.25313025]
[1751266597209,5.3084,150.67,150.63,5.3094]
[1751266597810,5.3088,150.66,150.62,5.3099]
[1751266598017,3.10159756,150.65,150.59,46.44159756]
[1751266598206,3.10159756,150.65,150.6,3.40554577]
[1751266598405,8.41079756,150.65,150.61,8.71584577]
[1751266598708,8.41079756,150.65,150.62,3.40554577]
[1751266598910,8.41079756,150.65,150.63,3.40554577]
[1751266599110,8.41079756,150.65,150.64,3.40554577]
[1751266599610,5.3092,150.65,150.64,3.40554577]
[1751266600011,5.3092,150.65,150.62,5.3099]
[1751266600513,5.3093,150.64,150.61,5.3102]
[1751266600707,3.10159756,150.66,150.59,43.34]
[1751266601013,3.10159756,150.66,150.6,3.25801525]
[1751266601208,3.10159756,150.66,150.61,3.25801525]
[1751266601417,42.96,150.69,150.61,3.25801525]
[1751266601418,42.96,150.69,150.62,3.25801525]
[1751266601615,3.10159756,150.67,150.59,46.44159756]
[1751266601815,3.10159756,150.67,150.6,3.25811886]
[1751266602016,3.10159756,150.67,150.61,3.25811886]
[1751266602217,3.10159756,150.67,150.62,3.25811886]
[1751266602516,3.10159756,150.68,150.63,3.25811886]
[1751266602711,3.10159756,150.68,150.6,6.15140225]
[1751266603013,3.10159756,150.68,150.61,3.25797835]
[1751266603208,3.10159756,150.68,150.6,6.15140225]
[1751266603209,8.40979756,150.68,150.64,5.3093]
[1751266604014,5.3083,150.67,150.64,5.3093]
[1751266605309,5.3083,150.67,150.63,5.3095]
[1751266605914,5.3083,150.67,150.64,5.3093]
[1751266606414,5.3083,150.67,150.63,5.3095]
[1751266606918,5.3083,150.67,150.64,5.3092]
[1751266607116,5.3083,150.67,150.6,9.25299981]
[1751266607416,5.3083,150.67,150.63,5.3094]
[1751266607618,5.3083,150.67,150.64,3.25491267]
[1751266607811,5.3083,150.67,150.63,5.3094]
[1751266608117,5.3083,150.67,150.64,3.25567096]
[1751266608417,5.3083,150.67,150.63,5.3094]
[1751266608715,5.3083,150.67,150.64,3.24979673]
[1751266608915,5.3083,150.67,150.63,5.3094]
[1751266609110,5.3083,150.67,150.64,3.24979673]
[1751266609306,5.3083,150.67,150.63,5.3094]
[1751266609512,5.3083,150.67,150.64,3.25058808]
[1751266609709,5.3083,150.67,150.63,5.3094]
[1751266609913,3.10159756,150.66,150.64,3.25058808]
[1751266610216,3.10159756,150.65,150.59,43.34]
[1751266610517,5.3095,150.64,150.6,8.56194784]
[1751266610718,5.3095,150.64,150.61,3.25144784]
[1751266611014,5.3095,150.64,150.62,3.25144784]
[1751266611214,5.3095,150.64,150.6,5.3105]
[1751266611415,5.3095,150.64,150.61,3.25211448]
[1751266611613,5.3095,150.64,150.62,3.25211448]
[1751266611810,5.3095,150.64,150.6,5.3105]
[1751266612015,5.3095,150.64,150.61,3.25211426]
[1751266612216,5.3095,150.64,150.62,3.25211426]
[1751266612415,5.3095,150.64,150.6,5.3105]
[1751266612616,5.3095,150.64,150.61,3.25263802]
[1751266612816,5.3095,150.64,150.62,3.25263802]
[1751266613016,5.3095,150.64,150.6,5.3105]
[1751266613217,5.3095,150.64,150.61,3.25617442]
[1751266613421,5.3095,150.64,150.62,3.25617442]
[1751266613626,5.3095,150.64,150.6,5.3105]
[1751266613819,5.3095,150.64,150.61,3.25672489]
[1751266614113,5.3095,150.64,150.62,3.25672489]
[1751266614324,5.309,150.65,150.63,3.25681966]
[1751266614511,3.10159756,150.67,150.59,52.59299981]
[1751266614821,3.10159756,150.67,150.6,9.40831683]
[1751266615018,8.41009756,150.67,150.63,5.3096]
[1751266615224,3.10159756,150.67,150.59,52.59299981]
[1751266615419,3.10159756,150.67,150.6,3.25734841]
[1751266615614,3.10159756,150.67,150.61,3.25734841]
[1751266615818,5.3088,150.66,150.62,8.56724841]
[1751266616018,5.3088,150.66,150.63,3.25734841]
[1751266616317,5.3088,150.66,150.62,5.3099]
[1751266616520,5.3088,150.66,150.63,3.25773824]
[1751266616715,5.3088,150.66,150.62,5.3099]
[1751266616912,5.3088,150.66,150.63,3.25773824]
[1751266617124,5.3088,150.66,150.62,5.3099]
[1751266617421,5.3088,150.66,150.63,3.25773824]
[1751266617621,5.3088,150.66,150.62,5.3099]
[1751266617826,5.309,150.65,150.63,3.25817757]
[1751266618026,5.309,150.65,150.62,5.3099]
[1751266618220,5.309,150.65,150.63,3.25817757]
[1751266618419,5.309,150.65,150.62,5.3099]
[1751266618623,5.309,150.65,150.63,3.25817402]
[1751266618925,5.309,150.65,150.62,5.3099]
[1751266619120,5.309,150.65,150.63,3.25817402]
[1751266619324,5.309,150.65,150.61,5.3102]
[1751266619525,5.309,150.65,150.62,3.25817253]
[1751266619725,5.309,150.65,150.61,5.3102]
[1751266619726,5.309,150.65,150.63,3.25817253]
[1751266620023,5.309,150.65,150.61,5.3102]
[1751266620218,3.10254815,150.65,150.62,3.25817253]
[1751266620418,3.10254815,150.65,150.63,3.25817253]
[1751266620627,3.10254815,150.65,150.6,11.46200225]
[1751266620827,5.3094,150.64,150.61,3.25817346]
[1751266621025,5.3094,150.64,150.62,3.25817346]
[1751266621225,5.3094,150.64,150.63,3.25817346]
[1751266621830,5.3094,150.64,150.63,8.81428602]
[1751266622827,8.41164815,150.65,150.63,8.81428602]
[1751266623027,5.3091,150.65,150.61,5.3103]
[1751266623227,5.3091,150.65,150.62,8.81444187]
[1751266623427,5.3091,150.65,150.63,8.81444187]
[1751266623628,5.3091,150.65,150.61,5.3103]
[1751266623830,5.3091,150.65,150.62,8.81428733]
[1751266624029,5.3091,150.65,150.63,8.81428733]
[1751266624222,5.3091,150.65,150.61,5.3103]
[1751266624423,5.3091,150.65,150.62,8.81428802]
[1751266624623,5.3088,150.66,150.63,8.81428802]
[1751266624822,5.3088,150.66,150.64,5.55590295]
[1751266625025,5.3088,150.66,150.6,6.15140225]
[1751266625228,5.3088,150.66,150.62,5.3097]
[1751266625430,5.3088,150.66,150.63,8.81414331]
[1751266625628,5.3088,150.66,150.64,5.55604514]
[1751266625830,5.3088,150.66,150.62,5.3097]
[1751266626132,5.3088,150.66,150.63,8.81851448]
[1751266626327,5.3088,150.66,150.64,5.56042975]
[1751266626527,5.3088,150.66,150.62,5.3097]
[1751266626726,5.3088,150.66,150.63,8.81852844]
[1751266626928,5.3088,150.66,150.64,5.56044285]
[1751266627125,5.3088,150.66,150.62,5.3097]
[1751266627331,5.3088,150.66,150.63,8.81716477]
[1751266627532,5.3088,150.66,150.64,5.5608482]
[1751266627732,5.3088,150.66,150.62,5.3097]
[1751266627934,5.3088,150.66,150.63,8.81720611]
[1751266628235,5.3088,150.66,150.64,5.56084915]
[1751266628436,5.3088,150.66,150.62,5.3097]
[1751266628636,5.3088,150.66,150.63,8.81789822]
[1751266628837,5.3088,150.66,150.64,5.56129635]
[1751266629036,5.3088,150.66,150.62,5.3097]
[1751266629337,5.3088,150.66,150.63,8.81803674]
[1751266629636,5.3088,150.66,150.64,5.56143487]
[1751266629936,5.3088,150.66,150.62,5.3097]
[1751266630136,5.3088,150.66,150.63,8.81865938]
[1751266630337,5.3088,150.66,150.64,5.56178703]
[1751266630538,5.3088,150.66,150.62,5.3097]
[1751266630738,5.3088,150.66,150.63,8.81950118]
[1751266630940,5.3088,150.66,150.64,5.5623291]
[1751266631140,5.3088,150.66,150.62,5.3097]
[1751266631340,5.3088,150.66,150.63,8.82010446]
[1751266631637,5.3088,150.66,150.64,5.56267287]
[1751266631835,5.3088,150.66,150.63,5.3096]
[1751266632034,5.3088,150.66,150.64,5.55812627]
[1751266632233,5.3088,150.66,150.6,6.15140225]
[1751266632436,5.309,150.65,150.62,5.3098]
[1751266632740,3.10254815,150.68,150.63,8.81594561]
[1751266632939,3.10254815,150.67,150.64,5.55820096]
[1751266633141,5.3088,150.66,150.62,5.3098]
[1751266633340,5.3088,150.66,150.63,8.8160258]
[1751266633537,5.3088,150.66,150.64,8.81615796]
[1751266633732,5.3088,150.66,150.62,5.3098]
[1751266633939,5.3088,150.66,150.63,9.01479254]
[1751266634139,5.3088,150.66,150.64,9.01479254]
[1751266634339,5.3088,150.66,150.65,3.45651177]
[1751266634839,5.3088,150.66,150.62,5.3098]
[1751266635038,5.3088,150.66,150.63,8.86507853]
[1751266635239,5.3088,150.66,150.64,15.57818123]
[1751266635439,5.3088,150.66,150.65,6.7131027]
[1751266638644,5.3088,150.66,150.62,5.3098]
[1751266638844,5.3088,150.66,150.63,8.83045891]
[1751266639039,5.3088,150.66,150.64,8.83045891]
[1751266639242,5.3088,150.66,150.62,5.3098]
[1751266639441,5.3088,150.66,150.63,8.8293639]
[1751266639640,5.3088,150.66,150.64,8.8293639]
[1751266639840,5.3088,150.66,150.62,5.3098]
[1751266640042,5.3088,150.66,150.63,8.8293639]
[1751266640335,5.309,150.65,150.64,8.8293639]
[1751266640940,5.3088,150.66,150.64,8.8293639]
[1751266641247,5.3088,150.66,150.62,5.3098]
[1751266641438,5.3088,150.66,150.63,8.82595157]
[1751266641635,5.3088,150.66,150.62,5.3098]
[1751266641636,5.3088,150.66,150.64,8.82595157]
[1751266641840,5.3088,150.66,150.62,5.3098]
[1751266642041,5.3088,150.66,150.63,8.82637039]
[1751266642350,5.3088,150.66,150.64,8.82637039]
[1751266642644,5.3088,150.66,150.62,5.3098]
[1751266642844,5.309,150.65,150.63,8.82721806]
[1751266643046,5.309,150.65,150.64,8.82721806]
[1751266643340,5.3087,150.66,150.64,8.82721806]
[1751266643541,5.3087,150.66,150.65,5.55733306]
[1751266644647,5.3084,150.67,150.65,5.55733306]
[1751266644845,5.3084,150.67,150.64,5.3093]
[1751266645047,3.10254815,150.68,150.65,8.82688521]
[1751266645246,5.3077,150.69,150.66,8.82688521]
[1751266645547,3.10254815,150.71,150.67,8.82688521]
[1751266645845,5.3074,150.7,150.68,5.55704628]
[1751266646047,5.3074,150.7,150.66,5.3083]
[1751266646243,5.3074,150.7,150.67,5.55376716]
[1751266646443,5.3076,150.69,150.65,5.3088]
[1751266646636,5.3076,150.69,150.66,5.55376716]
[1751266646838,5.3076,150.69,150.67,8.90136962]
[1751266647037,5.3076,150.69,150.68,5.55376716]
[1751266647551,5.3076,150.69,150.68,8.90066447]
[1751266647950,5.3076,150.69,150.68,5.55376716]
[1751266648449,8.40808496,150.69,150.68,5.55376716]
[1751266648649,12.82907713,150.69,150.68,5.55376716]
[1751266648951,5.309,150.65,150.64,2.1884]
[1751266649142,5.309,150.65,150.64,11.17951137]
[1751266649339,4.42099217,150.66,150.64,11.17951137]
[1751266649547,3.10048496,150.67,150.65,8.99111137]
[1751266649747,5.3086,150.66,150.64,2.1884]
[1751266649944,5.3086,150.66,150.65,8.97761035]
[1751266652252,5.3086,150.66,150.65,5.63097395]
[1751266652453,3.10048496,150.67,150.61,6.15140225]
[1751266652649,3.10048496,150.64,150.62,8.99199929]
[1751266652946,8.40978496,150.64,150.63,8.99199929]
[1751266655753,8.40978496,150.64,150.63,5.64154135]
[1751266655954,3.10048496,150.64,150.59,8.31690225]
[1751266656149,3.10048496,150.64,150.6,9.02025942]
[1751266656351,3.10048496,150.64,150.61,9.02025942]
[1751266656556,5.3097,150.63,150.62,9.02025942]
[1751266657357,5.3097,150.63,150.62,5.66953726]
[1751266665165,5.3095,150.64,150.62,5.66953726]
[1751266665364,5.3095,150.64,150.6,5.3105]
[1751266665562,5.3095,150.64,150.61,9.02562523]
[1751266665758,5.3095,150.64,150.62,5.66928528]
[1751266665961,5.3095,150.64,150.6,5.3105]
[1751266666160,5.3095,150.64,150.61,9.02562791]
[1751266666362,5.3095,150.64,150.62,5.66928719]
[1751266666566,5.3095,150.64,150.6,5.3105]
[1751266666767,5.3095,150.64,150.61,9.02518351]
[1751266666967,5.3095,150.64,150.62,5.66893552]
[1751266667167,5.3095,150.64,150.6,5.3105]
[1751266667367,5.3095,150.64,150.61,9.02297355]
[1751266667568,5.3095,150.64,150.62,5.66860645]
[1751266667868,42.04,150.71,150.63,9.02257139]
[1751266668074,3.1020325,150.67,150.64,9.02257139]
[1751266668274,5.3088,150.66,150.65,5.66764126]
[1751266668470,5.3088,150.66,150.62,5.31]
[1751266668674,5.3088,150.66,150.63,9.02151001]
[1751266668871,5.309,150.65,150.64,9.02151001]
[1751266669076,5.309,150.65,150.64,5.66770764]
[1751266669478,5.3096,150.64,150.61,2.3794]
[1751266669677,8.41199825,150.64,150.62,9.02229541]
[1751266669875,8.41199825,150.64,150.63,5.66826299]
[1751266670266,5.3097,150.63,150.61,2.3794]
[1751266670477,5.3097,150.63,150.62,9.00852631]
[1751266670969,5.3097,150.63,150.62,5.65454666]
[1751266671173,5.311,150.6,150.57,8.49410225]
[1751266671477,5.311,150.6,150.58,3.35429294]
[1751266671680,5.311,150.6,150.59,9.00917091]
[1751266672782,5.311,150.6,150.59,5.65487797]
[1751266672981,5.3116,150.58,150.56,44.3771]
[1751266673176,3.10239825,150.59,150.57,9.00662818]
[1751266673485,3.10239825,150.59,150.58,5.65305384]
[1751266674673,8.41369825,150.59,150.58,5.65305384]
[1751266676686,5.3114,150.58,150.56,2.3371]
[1751266676883,5.3114,150.58,150.57,9.02634629]
[1751266677385,5.3114,150.58,150.57,9.03503636]
[1751266678084,5.3114,150.58,150.57,5.67610805]
[1751266680485,8.41359825,150.59,150.57,5.67610805]
[1751266680681,8.41359825,150.59,150.56,2.3371]
[1751266680978,8.41359825,150.59,150.57,5.68143577]
[1751266681187,5.3114,150.58,150.56,2.3371]
[1751266681484,5.3114,150.58,150.57,5.68051408]
[1751266682682,5.3118,150.57,150.56,2.3371]
[1751266682987,8.41419825,150.57,150.56,5.69183431]
[1751266684888,5.3118,150.57,150.56,5.69183431]
[1751266685085,8.41419825,150.57,150.56,5.69183431]
[1751266685394,6.2047965,150.57,150.5,6.20489387]
[1751266685690,3.10239825,150.52,150.48,42.04]
[1751266685889,8.41619825,150.52,150.49,5.69510539]
[1751266686089,8.41619825,150.52,150.5,5.69510539]
[1751266686294,8.41619825,150.52,150.48,42.04]
[1751266686486,8.41619825,150.52,150.49,5.58409727]
[1751266686683,8.41619825,150.52,150.48,42.04]
[1751266686984,8.41619825,150.52,150.49,5.58409727]
[1751266687293,8.41619825,150.52,150.48,42.04]
[1751266687484,8.41619825,150.52,150.49,5.58079409]
[1751266687789,8.41619825,150.52,150.48,47.3549]
[1751266687992,2.1878,150.58,150.49,5.58079409]
[1751266688193,3.10239825,150.55,150.48,42.04]
[1751266688379,3.10239825,150.55,150.49,5.57822063]
[1751266688579,8.41579825,150.53,150.48,47.3548]
[1751266688783,8.41579825,150.53,150.49,5.57822063]
[1751266688991,8.41579825,150.53,150.48,42.04]
[1751266689192,8.41579825,150.53,150.49,5.57812914]
[1751266689487,5.3136,150.52,150.48,42.04]
[1751266689889,5.3136,150.52,150.48,47.3547]
[1751266691793,8.41569825,150.53,150.48,47.3547]
[1751266691986,3.10239825,150.51,150.48,42.04]
[1751266692181,3.10239825,150.49,150.46,4.4019]
[1751266692587,3.10239825,150.49,150.44,2.1969]
[1751266692987,5.3152,150.48,150.44,2.1969]
[1751266693295,3.10239825,150.49,150.44,2.1969]
[1751266693695,8.41719825,150.49,150.44,7.5132]
[1751266694292,5.315,150.48,150.44,7.5132]
[1751266695292,8.41709825,150.49,150.45,5.3159]
[1751266695492,3.10239825,150.49,150.44,2.1969]
[1751266695795,3.10239825,150.49,150.45,6.67046086]
[1751266695995,5.3152,150.48,150.46,6.67046086]
[1751266696197,5.3152,150.48,150.44,7.513]
[1751266696495,5.3152,150.48,150.45,6.66849094]
[1751266696696,5.3147,150.49,150.46,6.66849094]
[1751266696894,3.10239825,150.54,150.47,3.10239825]
[1751266697198,3.10239825,150.54,150.49,3.10239825]
[1751266697199,5.3131,150.54,150.49,3.10239825]
[1751266697390,3.10239825,150.56,150.5,4.67]
[1751266697594,5.3124,150.56,150.52,5.3135]
[1751266697796,44.64239825,150.58,150.51,41.54]
[1751266697995,44.64239825,150.58,150.52,6.66583527]
[1751266698196,5.3127,150.55,150.53,6.66583527]
[1751266698397,5.3127,150.55,150.51,46.8539]
[1751266698600,3.10239825,150.56,150.52,6.72525627]
[1751266698801,5.3131,150.54,150.53,6.72525627]
[1751266699101,8.41549825,150.54,150.53,6.72525627]
[1751266699504,8.41549825,150.54,150.5,4.67]
[1751266699800,8.41549825,150.54,150.51,6.72607501]
[1751266700002,3.10239825,150.54,150.52,6.72607501]
[1751266700200,5.3126,150.55,150.5,9.9842]
[1751266700395,5.3126,150.55,150.51,6.72667051]
[1751266700602,5.3126,150.55,150.52,6.72667051]
[1751266700801,5.3126,150.55,150.5,9.9842]
[1751266700998,5.3126,150.55,150.51,6.72667096]
[1751266701201,5.3126,150.55,150.52,6.72667096]
[1751266701402,5.3126,150.55,150.5,9.9842]
[1751266701602,5.3126,150.55,150.51,6.72689999]
[1751266701802,5.3126,150.55,150.5,9.9842]
[1751266701803,5.3126,150.55,150.52,6.72689999]
[1751266702004,5.3126,150.55,150.53,6.72689999]
[1751266702201,5.3126,150.55,150.5,9.9842]
[1751266702402,5.3126,150.55,150.51,6.72728793]
[1751266702600,5.3126,150.55,150.52,6.72728793]
[1751266702801,5.3126,150.55,150.53,6.72728793]
[1751266702999,5.3126,150.55,150.5,9.9842]
[1751266703202,5.3128,150.54,150.51,6.72728749]
[1751266703402,5.3128,150.54,150.52,6.72728749]
[1751266703701,5.3128,150.54,150.53,6.72728749]
[1751266703902,5.3133,150.53,150.5,2.3666]
[1751266704103,5.3133,150.53,150.51,6.72800905]
[1751266704306,5.3133,150.53,150.52,6.72800905]
[1751266704507,5.3133,150.53,150.5,2.3666]
[1751266704802,5.3133,150.53,150.51,6.65807387]
[1751266705001,5.3133,150.53,150.5,2.3666]
[1751266705194,5.3133,150.53,150.51,6.65841912]
[1751266705399,5.3133,150.53,150.5,2.3666]
[1751266705700,5.3133,150.53,150.51,6.65864057]
[1751266705901,5.3133,150.53,150.5,2.3666]
[1751266706201,5.3133,150.53,150.51,6.65869902]
[1751266706405,5.3133,150.53,150.5,2.3666]
[1751266707703,41.54,150.58,150.51,6.65973299]
[1751266707910,3.10239825,150.57,150.5,5.46899825]
[1751266708202,3.10239825,150.57,150.51,11.97328545]
[1751266708397,5.3125,150.55,150.52,6.65948545]
[1751266708702,3.10239825,150.57,150.52,5.3135]
[1751266708899,3.10239825,150.57,150.5,5.46899825]
[1751266709101,3.10239825,150.57,150.51,12.24231169]
[1751266709407,5.313,150.54,150.52,6.66028182]
[1751266709598,3.10239825,150.55,150.5,2.3666]
[1751266709803,3.10239825,150.55,150.51,6.6618619]
[1751266710004,5.3134,150.53,150.52,6.6618619]
[1751266710508,5.3134,150.53,150.5,2.3666]
[1751266710806,5.3134,150.53,150.51,6.66334005]
[1751266711007,5.3134,150.53,150.5,2.3666]
[1751266711207,5.3134,150.53,150.51,6.66328156]
[1751266711408,5.313,150.54,150.52,6.66328156]
[1751266711607,5.313,150.54,150.5,2.3666]
[1751266711810,5.313,150.54,150.51,6.66460789]
[1751266712004,5.313,150.54,150.52,6.66460789]
[1751266712205,5.313,150.54,150.53,6.66503917]
[1751266712601,41.54,150.58,150.53,6.66503917]
[1751266712904,3.10239825,150.58,150.54,6.66560178]
[1751266713109,3.10239825,150.58,150.5,2.3666]
[1751266713310,5.3122,150.56,150.51,17.5559047]
[1751266713507,3.10239825,150.58,150.52,12.2422047]
[1751266713708,3.10239825,150.6,150.53,6.66623389]
[1751266714017,3.10239825,150.6,150.54,6.66623389]
[1751266714212,3.10239825,150.6,150.55,6.66623389]
[1751266714410,5.3115,150.58,150.56,6.66623389]
[1751266714706,5.3115,150.58,150.52,41.54]
[1751266714902,5.3115,150.58,150.54,5.3126]
[1751266715105,5.3115,150.58,150.55,6.67197094]
[1751266715305,5.3115,150.58,150.56,6.67197094]
[1751266715510,5.3115,150.58,150.57,6.67197094]
[1751266715712,8.41389825,150.58,150.57,6.67197094]
[1751266715911,5.3121,150.57,150.52,46.8532]
[1751266716211,5.3121,150.57,150.53,12.25118811]
[1751266716511,5.3121,150.57,150.54,6.67493861]
[1751266716700,5.3121,150.57,150.52,46.8532]
[1751266716701,5.3121,150.56,150.55,6.67493861]
[1751266717311,5.3121,150.56,150.52,46.8532]
[1751266717614,5.3121,150.56,150.53,10.89265847]
[1751266717813,5.3121,150.56,150.54,5.57939016]
[1751266718010,5.3121,150.56,150.53,5.3132]
[1751266718202,5.3121,150.56,150.54,5.57979386]
[1751266718407,5.3121,150.56,150.53,5.3132]
[1751266718608,5.3121,150.56,150.54,5.57998208]
[1751266718812,5.3121,150.56,150.53,5.3132]
[1751266719015,5.3119,150.57,150.54,5.57998208]
[1751266719210,5.3119,150.57,150.53,5.3132]
[1751266719415,3.10239825,150.6,150.54,5.58059168]
[1751266719613,5.3116,150.58,150.52,41.54]
[1751266719911,5.3116,150.58,150.54,5.3126]
[1751266720115,5.3117,150.58,150.55,5.58059073]
[1751266720309,5.3117,150.58,150.54,5.3126]
[1751266720509,3.10239825,150.6,150.55,5.5806043]
[1751266720710,3.10239825,150.6,150.54,5.3126]
[1751266720910,5.312,150.57,150.55,5.5806043]
[1751266721112,5.312,150.57,150.54,5.3126]
[1751266721307,5.312,150.57,150.55,5.58105128]
[1751266721510,5.312,150.57,150.54,5.3126]
[1751266721714,5.312,150.57,150.55,5.58105128]
[1751266722016,5.312,150.57,150.54,5.3126]
[1751266722315,3.10239825,150.6,150.55,5.58143565]
[1751266722515,41.54,150.61,150.52,41.54]
[1751266722516,3.10239825,150.58,150.52,41.54]
[1751266722731,41.54,150.61,150.52,41.54]
[1751266722732,3.10239825,150.56,150.52,41.54]
[1751266722911,5.3128,150.55,150.52,41.54]
[1751266724014,8.41469825,150.56,150.52,46.8533]
[1751266725219,5.3126,150.55,150.52,46.8533]
[1751266725621,41.54,150.61,150.52,41.54]
[1751266725822,3.10239825,150.58,150.53,5.58853666]
[1751266726121,3.10239825,150.58,150.54,5.58853666]
[1751266726320,3.10239825,150.58,150.52,41.54]
[1751266726619,3.10239825,150.58,150.53,5.58869501]
[1751266726819,3.10239825,150.58,150.54,5.58869501]
[1751266727018,3.10239825,150.58,150.52,41.54]
[1751266727222,5.312,150.57,150.54,5.3127]
[1751266727922,5.312,150.57,150.52,41.54]
[1751266728220,5.3116,150.58,150.53,5.58929559]
[1751266728421,5.3116,150.58,150.55,5.3124]
[1751266729028,2.1847,150.63,150.53,3.10239825]
[1751266729234,41.0,150.64,150.55,3.10239825]
[1751266729235,3.10239825,150.61,150.55,3.10239825]
[1751266729423,41.0,150.64,150.56,48.80501141]
[1751266729727,5.3106,150.61,150.57,10.90111141]
[1751266729934,5.3106,150.61,150.58,5.58941141]
[1751266730122,5.3106,150.61,150.57,5.3117]
[1751266730325,5.3106,150.61,150.58,5.58250269]
[1751266730622,5.3106,150.61,150.57,5.3117]
[1751266730823,5.3106,150.61,150.58,5.58250258]
[1751266731121,3.10239825,150.63,150.57,5.3117]
[1751266731323,3.10239825,150.63,150.58,5.5808952]
[1751266731523,3.10239825,150.63,150.57,5.3117]
[1751266731725,5.3105,150.61,150.58,5.5808952]
[1751266731925,5.3105,150.61,150.57,5.3117]
[1751266732127,5.3105,150.61,150.58,5.5808952]
[1751266732329,5.3105,150.61,150.57,5.3117]
[1751266732523,5.3105,150.61,150.58,5.57949137]
[1751266732724,5.3105,150.61,150.57,5.3117]
[1751266732926,5.3105,150.61,150.58,5.57949137]
[1751266733231,5.3105,150.61,150.57,5.3117]
[1751266733431,5.3105,150.61,150.58,5.5781759]
[1751266733631,5.3105,150.61,150.57,5.3117]
[1751266733831,5.3105,150.61,150.58,5.5781759]
[1751266734034,5.3105,150.61,150.57,5.3117]
[1751266734328,5.3105,150.61,150.58,5.5781759]
[1751266734532,5.3105,150.61,150.57,5.3117]
[1751266734737,3.10239825,150.6,150.56,43.2156]
[1751266735235,3.10239825,150.58,150.56,2.2156]
[1751266735532,3.10239825,150.58,150.54,2.2693]
[1751266735732,8.41409825,150.58,150.55,5.56407968]
[1751266735938,8.41409825,150.58,150.54,2.2693]
[1751266736127,8.41409825,150.58,150.55,5.56407916]
[1751266736328,8.41409825,150.58,150.54,2.2693]
[1751266736530,8.41409825,150.58,150.55,5.56409623]
[1751266736731,8.41409825,150.58,150.54,2.2693]
[1751266737034,5.312,150.57,150.55,5.56409571]
[1751266737237,5.312,150.57,150.54,2.2693]
[1751266737623,5.3121,150.56,150.53,41.0]
[1751266737827,3.10239825,150.57,150.54,5.5646499]
[1751266738036,3.10239825,150.57,150.53,41.0]
[1751266738333,8.41439825,150.57,150.54,5.5646499]
[1751266738533,8.41439825,150.57,150.55,5.56634933]
[1751266738730,8.41439825,150.57,150.53,41.0]
[1751266738929,8.41439825,150.57,150.54,5.56641712]
[1751266739135,8.41439825,150.57,150.53,41.0]
[1751266739334,8.41439825,150.57,150.54,5.56867092]
[1751266739535,5.3121,150.56,150.53,41.0]
[1751266739730,5.3121,150.56,150.54,5.5686704]
[1751266739936,5.3121,150.56,150.53,41.0]
[1751266740129,5.3121,150.56,150.54,5.56867092]
[1751266740326,5.3121,150.56,150.55,5.56867092]
[1751266741038,5.3125,150.55,150.52,2.2277]
[1751266741231,3.10239825,150.55,150.53,5.57118251]
[1751266741429,3.10239825,150.55,150.54,5.57118251]
[1751266742339,8.41489825,150.55,150.54,5.57118251]
[1751266745730,3.10239825,150.55,150.54,5.57118251]
[1751266746336,3.10239825,150.57,150.54,5.57118251]
[1751266746534,3.10239825,150.57,150.55,5.57118251]
[1751266746834,3.10239825,150.57,150.52,2.2277]
[1751266747140,3.10239825,150.57,150.53,5.59947845]
[1751266747340,3.10239825,150.57,150.54,5.59947845]
[1751266747533,5.3122,150.56,150.55,5.59947845]
[1751266752245,8.41429825,150.57,150.55,5.59947845]
[1751266752445,8.41429825,150.57,150.56,5.59947845]
[1751266755147,5.3119,150.57,150.56,5.59947845]
[1751266755750,5.3116,150.58,150.56,5.59947845]
[1751266756048,8.41399825,150.58,150.54,5.3128]
[1751266756252,8.41399825,150.58,150.55,5.60645883]
[1751266756449,8.41399825,150.58,150.56,5.60645883]
[1751266756654,8.41399825,150.58,150.54,5.3128]
[1751266756852,8.41399825,150.58,150.55,5.606663]
[1751266757150,8.41399825,150.58,150.56,5.606663]
[1751266757349,8.41399825,150.58,150.54,5.3128]